bitfinex/quotes_BTCUSD_20240827
["timestamp","ask_amount","ask_price","bid_price","bid_amount"]
[1724798588662,0.18329326,59353.0,59352.0,0.0028998]
[1724798588881,0.28771103,59353.0,59352.0,0.0028998]
[1724798589101,0.15958303,59353.0,59352.0,0.0028998]
[1724798589313,0.28097427,59353.0,59352.0,0.0028998]
[1724798589572,0.17651602,59353.0,59352.0,0.0028998]
[1724798589789,0.15351602,59353.0,59352.0,0.0028998]
[1724798590019,0.15351602,59353.0,59352.0,0.5753998]
[1724798590240,0.005,59353.0,59352.0,0.5753998]
[1724798590464,0.07651602,59353.0,59352.0,0.0028998]
[1724798590678,0.31434149,59353.0,59352.0,0.0028998]
[1724798590885,0.46286148,59353.0,59352.0,0.0028998]
[1724798591099,0.53468627,59353.0,59352.0,0.0028998]
[1724798591758,0.53260286,59353.0,59352.0,0.0028998]
[1724798591964,0.43557947,59353.0,59352.0,0.0028998]
[1724798592194,0.55686422,59353.0,59352.0,0.0028998]
[1724798592617,0.75914722,59353.0,59352.0,0.0028998]
[1724798592835,0.75914722,59353.0,59340.0,0.008987]
[1724798592836,0.3801,59341.0,59340.0,0.008987]
[1724798593284,0.5031,59341.0,59340.0,0.008987]
[1724798593524,0.60749959,59341.0,59340.0,0.008987]
[1724798593743,0.55161033,59341.0,59340.0,0.008987]
[1724798593953,0.5832234,59341.0,59340.0,0.008987]
[1724798594158,0.66868765,59341.0,59340.0,0.009987]
[1724798594582,0.67368765,59341.0,59340.0,0.009987]
[1724798595014,0.67368765,59341.0,59331.0,0.008943]
[1724798595015,0.184,59340.0,59331.0,0.008943]
[1724798595232,0.07273418,59336.0,59331.0,0.008943]
[1724798595453,0.38332835,59336.0,59331.0,0.008943]
[1724798595670,0.91882,59333.0,59331.0,0.008943]
[1724798595886,0.56780989,59333.0,59331.0,0.008943]
[1724798596104,0.73634989,59333.0,59331.0,0.008943]
[1724798596320,0.56780989,59333.0,59331.0,0.008943]
[1724798596540,0.6474403,59333.0,59331.0,0.008943]
[1724798596763,0.66423872,59333.0,59331.0,0.008943]
[1724798596972,0.61583041,59333.0,59331.0,0.008943]
[1724798597249,0.62183041,59333.0,59332.0,0.009943]
[1724798597476,0.65310983,59333.0,59332.0,0.009943]
[1724798597693,0.78506849,59333.0,59332.0,0.009943]
[1724798597908,0.78506849,59333.0,59310.0,0.3815]
[1724798597909,0.465336,59332.0,59310.0,0.3815]
[1724798598132,0.465336,59322.0,59310.0,0.3815]
[1724798598343,0.04837062,59326.0,59310.0,0.3815]
[1724798598575,0.1,59322.0,59310.0,0.3815]
[1724798598803,0.1353,59322.0,59310.0,0.3815]
[1724798599698,0.0353,59322.0,59310.0,0.3815]
[1724798599887,0.024,59322.0,59321.0,0.011943]
[1724798600212,0.001,59322.0,59321.0,0.393443]
[1724798600428,0.001,59322.0,59321.0,0.582143]
[1724798600652,0.00685406,59329.0,59321.0,0.579143]
[1724798601108,0.005,59322.0,59321.0,0.579143]
[1724798601536,0.54641516,59340.0,59321.0,0.579143]
[1724798601758,0.23625355,59339.0,59321.0,0.579143]
[1724798602210,0.4132,59338.0,59321.0,0.579143]
[1724798602457,0.023,59337.0,59321.0,0.579143]
[1724798602697,0.123,59337.0,59321.0,0.579143]
[1724798602918,0.123,59337.0,59321.0,0.390443]
[1724798602919,0.001,59329.0,59321.0,0.390443]
[1724798603360,0.465336,59333.0,59321.0,0.390443]
[1724798603574,0.465336,59333.0,59321.0,0.391443]
[1724798603575,0.1,59332.0,59321.0,0.391443]
[1724798603792,0.1,59332.0,59321.0,0.390443]
[1724798604011,0.0565336,59331.0,59321.0,0.008943]
[1724798604235,0.002,59329.0,59321.0,0.008943]
[1724798604457,0.008,59329.0,59321.0,0.008943]
[1724798604867,0.023,59328.0,59321.0,0.008943]
[1724798605149,0.00875336,59327.0,59321.0,0.008943]
[1724798605362,0.023,59326.0,59321.0,0.008943]
[1724798605786,0.023,59326.0,59321.0,0.009943]
[1724798606210,0.023,59326.0,59321.0,0.008943]
[1724798606430,0.023,59326.0,59321.0,0.009943]
[1724798606645,0.465336,59323.0,59321.0,0.008943]
[1724798606876,0.0488336,59322.0,59321.0,0.008943]
[1724798607094,0.1718336,59322.0,59321.0,0.010943]
[1724798607528,0.123,59322.0,59321.0,0.010943]
[1724798607742,0.123,59322.0,59321.0,0.012943]
[1724798607987,0.123,59322.0,59304.0,0.3868]
[1724798607988,0.990536,59322.0,59304.0,0.3868]
[1724798608201,0.990536,59322.0,59296.0,0.3868]
[1724798608202,0.465336,59312.0,59296.0,0.3868]
[1724798608402,0.3959,59310.0,59296.0,0.3868]
[1724798608833,0.023,59309.0,59296.0,0.3868]
[1724798609076,0.023,59309.0,59282.0,0.005]
[1724798609077,0.168638,59299.0,59282.0,0.1939]
[1724798609293,0.465336,59294.0,59293.0,0.50540786]
[1724798609507,0.6241696,59294.0,59282.0,0.1939]
[1724798609729,0.1,59293.0,59292.0,0.405798]
[1724798610155,0.1,59293.0,59292.0,0.604498]
[1724798610585,0.009,59294.0,59293.0,0.005]
[1724798610798,0.465336,59314.0,59293.0,0.005]
[1724798611015,0.01,59294.0,59292.0,0.599498]
[1724798611692,0.01,59294.0,59292.0,0.604498]
[1724798612149,0.0465336,59313.0,59292.0,0.599498]
[1724798612375,0.023,59312.0,59292.0,0.599498]
[1724798612644,0.001,59294.0,59292.0,0.599498]
[1724798613090,0.001,59293.0,59292.0,0.610498]
[1724798613514,0.001,59294.0,59292.0,0.599498]
[1724798613963,0.1,59303.0,59292.0,0.600498]
[1724798614185,0.0795336,59302.0,59292.0,0.405798]
[1724798614403,0.0795336,59302.0,59292.0,0.416798]
[1724798614616,0.001,59293.0,59292.0,0.416798]
[1724798615715,0.0795336,59302.0,59292.0,0.008998]
[1724798615924,0.001,59293.0,59292.0,0.008998]
[1724798616364,0.1,59300.0,59292.0,0.019998]
[1724798616365,0.001,59294.0,59292.0,0.019998]
[1724798616596,0.001,59293.0,59292.0,0.008998]
[1724798617027,0.002,59293.0,59292.0,0.020998]
[1724798617156,0.023,59297.0,59292.0,0.008998]
[1724798617358,0.06627,59296.0,59292.0,0.018998]
[1724798617560,0.002,59294.0,59292.0,0.018998]
[1724798617975,0.002,59294.0,59293.0,0.57997344]
[1724798618195,0.867436,59324.0,59294.0,0.3854]
[1724798618196,0.50540786,59323.0,59294.0,0.3854]
[1724798618392,0.50540786,59323.0,59312.0,0.005]
[1724798618600,0.5397,59330.0,59317.0,0.4034]
[1724798618805,0.465336,59325.0,59317.0,0.4034]
[1724798619088,0.465336,59325.0,59311.0,0.5944]
[1724798619499,0.465336,59325.0,59311.0,0.5934]
[1724798620220,0.477336,59325.0,59317.0,0.001]
[1724798620416,0.0477336,59324.0,59317.0,0.001]
[1724798620826,0.023,59323.0,59317.0,0.001]
[1724798621440,0.03120759,59322.0,59317.0,0.001]
[1724798621652,0.03120759,59322.0,59318.0,0.4107]
[1724798622489,0.1,59323.0,59318.0,0.4107]
[1724798622703,0.5397,59326.0,59318.0,0.5991]
[1724798623140,0.014,59324.0,59318.0,0.5991]
[1724798623348,0.014,59324.0,59318.0,0.6001]
[1724798623519,0.005,59322.0,59318.0,0.6001]
[1724798623742,0.005,59322.0,59318.0,0.5991]
[1724798623984,0.05947,59322.0,59318.0,0.6001]
[1724798624616,0.005,59322.0,59318.0,0.6011]
[1724798624821,0.023,59321.0,59318.0,0.6011]
[1724798625244,0.023,59321.0,59318.0,0.6001]
[1724798625821,0.023,59321.0,59318.0,0.5991]
[1724798626003,0.008,59322.0,59318.0,0.5991]
[1724798626210,0.00779714,59322.0,59318.0,0.5991]
[1724798626401,0.1,59325.0,59318.0,0.5991]
[1724798626646,0.004,59321.0,59318.0,0.5991]
[1724798627290,0.0104,59321.0,59318.0,0.5991]
[1724798627747,0.0104,59321.0,59311.0,0.1824]
[1724798627961,0.023,59320.0,59311.0,0.1824]
[1724798628184,0.023,59320.0,59312.0,0.50540786]
[1724798628395,0.5627,59324.0,59316.0,0.3991]
[1724798628612,0.5627,59324.0,59321.0,0.005]
[1724798628613,0.005,59322.0,59321.0,0.005]
[1724798628823,0.005,59322.0,59321.0,0.5901]
[1724798629032,0.5397,59324.0,59322.0,0.3991]
[1724798629479,0.5397,59324.0,59322.0,0.3901]
[1724798629678,0.5417,59324.0,59322.0,0.3901]
[1724798629861,0.5397,59324.0,59322.0,0.3901]
[1724798630058,0.59387,59324.0,59322.0,0.3891]
[1724798630286,0.59387,59324.0,59322.0,0.3971]
[1724798630491,0.59387,59324.0,59322.0,0.3891]
[1724798630689,0.5397,59324.0,59322.0,0.3891]
[1724798630908,0.5397,59332.0,59322.0,0.3981]
[1724798631116,0.5397,59332.0,59322.0,0.009]
[1724798631117,0.123,59323.0,59322.0,0.009]
[1724798631323,0.05418407,59323.0,59322.0,0.009]
[1724798631543,0.15418407,59323.0,59322.0,0.009]
[1724798631764,0.22613608,59323.0,59322.0,0.014]
[1724798632195,0.22613608,59323.0,59322.0,0.005]
[1724798632402,0.22613608,59323.0,59322.0,0.008]
[1724798633295,0.22613608,59323.0,59314.0,0.1805]
[1724798633513,0.20033128,59322.0,59314.0,0.1805]
[1724798633735,0.023,59321.0,59314.0,0.1805]
[1724798634170,0.023,59321.0,59304.0,0.005]
[1724798634171,0.03118359,59320.0,59308.0,0.5804]
[1724798634383,0.023,59319.0,59309.0,0.50540786]
[1724798634584,0.023,59319.0,59308.0,0.5804]
[1724798634585,0.04533308,59319.0,59308.0,0.5854]
[1724798634806,0.04533308,59319.0,59308.0,0.5804]
[1724798635022,0.03117925,59318.0,59308.0,0.5804]
[1724798635281,0.023,59317.0,59308.0,0.3805]
[1724798635489,0.023,59317.0,59314.0,0.005]
[1724798635490,0.09510048,59316.0,59314.0,0.005]
[1724798635716,0.05417925,59315.0,59309.0,0.004]
[1724798635923,0.03117925,59314.0,59309.0,0.004]
[1724798636131,0.023,59313.0,59309.0,0.004]
[1724798636321,0.03117925,59312.0,59309.0,0.004]
[1724798636562,0.03841792,59311.0,59309.0,0.004]
[1724798636761,0.03841792,59311.0,59308.0,0.3805]
[1724798637173,0.03841792,59311.0,59309.0,0.008]
[1724798638430,0.03841792,59311.0,59308.0,0.006]
[1724798638632,0.03941792,59311.0,59309.0,0.009]
[1724798638835,0.008766,59310.0,59309.0,0.009]
[1724798639074,0.008766,59310.0,59309.0,0.002]
[1724798639075,0.031766,59310.0,59309.0,0.002]
[1724798639280,0.031766,59310.0,59309.0,0.008]
[1724798639281,0.17479883,59310.0,59309.0,0.008]
[1724798639524,0.27508906,59310.0,59309.0,0.006]
[1724798639751,0.15419358,59310.0,59309.0,0.006]
[1724798639967,0.25090545,59310.0,59309.0,0.006]
[1724798640182,0.13119358,59310.0,59309.0,0.5693]
[1724798640393,0.1,59310.0,59309.0,0.3795]
[1724798640604,0.1,59310.0,59308.0,0.002]
[1724798640605,0.14835925,59310.0,59308.0,0.002]
[1724798640840,0.1,59309.0,59308.0,0.002]
[1724798641046,0.1,59309.0,59308.0,0.3876]
[1724798641467,0.1,59309.0,59308.0,0.3926]
[1724798641673,0.1,59309.0,59308.0,0.3856]
[1724798642090,0.004,59310.0,59308.0,0.3856]
[1724798642302,0.005,59310.0,59308.0,0.3856]
[1724798642514,0.5407,59310.0,59308.0,0.3856]
[1724798642727,0.1,59309.0,59308.0,0.3856]
[1724798643021,0.1,59309.0,59308.0,0.3896]
[1724798643235,0.1,59309.0,59308.0,0.3856]
[1724798643464,0.1,59309.0,59308.0,0.3936]
[1724798643465,0.1929097,59309.0,59308.0,0.3936]
[1724798643673,0.1929097,59309.0,59308.0,0.003]
[1724798643886,0.88482654,59309.0,59308.0,0.012]
[1724798644091,0.76483408,59309.0,59308.0,0.012]
[1724798644301,0.76483408,59309.0,59308.0,0.00734409]
[1724798644734,0.71487408,59309.0,59308.0,0.00734409]
[1724798645148,0.71287408,59309.0,59300.0,0.0075]
[1724798645359,0.04834784,59303.0,59300.0,0.0075]
[1724798645589,0.465336,59304.0,59300.0,0.0075]
[1724798645590,0.15091752,59302.0,59300.0,0.0075]
[1724798645792,0.53711738,59301.0,59300.0,0.0024226]
[1724798646025,1.1043838,59301.0,59300.0,0.0024226]
[1724798646245,1.67135136,59301.0,59300.0,0.0024226]
[1724798646469,1.45495578,59301.0,59300.0,0.0024226]
[1724798646707,0.94906278,59301.0,59287.0,0.008998]
[1724798646893,0.94906278,59301.0,59300.0,0.001]
[1724798646894,0.82819636,59301.0,59300.0,0.001]
[1724798647106,0.8417508,59301.0,59300.0,0.001]
[1724798647320,0.8417508,59301.0,59287.0,0.008998]
[1724798647321,0.8797608,59301.0,59287.0,0.008998]
[1724798647537,0.633989,59293.0,59287.0,0.008998]
[1724798647745,0.565336,59293.0,59287.0,0.008998]
[1724798648871,0.568336,59293.0,59287.0,0.008998]
[1724798649327,0.59113311,59293.0,59287.0,0.008998]
[1724798649531,0.59913311,59293.0,59287.0,0.008998]
[1724798649736,0.66087192,59293.0,59287.0,0.008998]
[1724798649946,0.66087192,59293.0,59292.0,0.592798]
[1724798649947,0.108,59293.0,59292.0,0.592798]
[1724798650161,0.02871451,59293.0,59292.0,0.398598]
[1724798651469,0.55441451,59293.0,59292.0,0.398598]
[1724798651681,0.65741451,59293.0,59292.0,0.398598]
[1724798651894,0.71285596,59293.0,59292.0,0.008998]
[1724798652105,1.20119196,59293.0,59292.0,0.008998]
[1724798652749,0.5,59274.0,59250.0,0.5898]
[1724798652960,0.634063,59267.0,59266.0,0.0005354]
[1724798653193,0.634063,59267.0,59250.0,0.5898]
[1724798653194,0.0338,59266.0,59250.0,0.5898]
[1724798653392,0.465336,59257.0,59250.0,0.5898]
[1724798653620,0.465336,59257.0,59249.0,0.00819]
[1724798653621,0.4154,59256.0,59249.0,0.00819]
[1724798653829,0.0338,59253.0,59249.0,0.00819]
[1724798654023,0.302569,59253.0,59249.0,0.00819]
[1724798654229,0.5154,59256.0,59249.0,0.00819]
[1724798654230,0.0568,59252.0,59249.0,0.00819]
[1724798654459,0.023,59252.0,59249.0,0.00819]
[1724798654666,0.023,59255.0,59249.0,0.00819]
[1724798655495,0.014,59252.0,59249.0,0.00819]
[1724798655754,0.023,59255.0,59249.0,0.00819]
[1724798655975,0.16877,59252.0,59249.0,0.00819]
[1724798656196,0.0338,59250.0,59249.0,0.00819]
[1724798656418,0.0338,59250.0,59248.0,0.00819]
[1724798656419,0.202579,59249.0,59248.0,2e-08]
[1724798656640,0.0338,59249.0,59248.0,2e-08]
[1724798656844,0.0568,59249.0,59248.0,2e-08]
[1724798657052,0.123,59249.0,59248.0,2e-08]
[1724798658173,0.02977406,59249.0,59248.0,2e-08]
[1724798658434,0.04377406,59249.0,59248.0,2e-08]
[1724798658628,0.04377406,59249.0,59233.0,0.4127]
[1724798658804,0.04377406,59249.0,59234.0,0.50540786]
[1724798658805,0.023,59248.0,59234.0,0.50540786]
[1724798659192,0.023,59248.0,59233.0,0.4177]
[1724798659613,0.023,59248.0,59235.0,0.005]
[1724798659998,0.023,59248.0,59245.0,0.4055]
[1724798660197,0.037,59248.0,59245.0,0.4055]
[1724798660911,0.051,59248.0,59245.0,0.4055]
[1724798661290,0.037,59248.0,59245.0,0.4055]
[1724798661598,0.023,59248.0,59245.0,0.4055]
[1724798662953,0.465336,59246.0,59231.0,0.183]
[1724798663118,0.17251101,59245.0,59234.0,0.3885]
[1724798663325,0.17251101,59245.0,59235.0,0.50540786]
[1724798663568,0.17251101,59245.0,59234.0,0.3885]
[1724798664014,0.34130101,59245.0,59234.0,0.3885]
[1724798664215,0.34130201,59245.0,59234.0,0.3885]
[1724798664452,0.34130201,59245.0,59214.0,0.50540786]
[1724798664453,0.005,59219.0,59214.0,0.50540786]
[1724798664640,0.35,59226.0,59214.0,0.49499812]
[1724798664641,0.465336,59215.0,59214.0,0.49499812]
[1724798664850,0.599136,59215.0,59212.0,0.1832]
[1724798665056,0.1338,59214.0,59212.0,0.1832]
[1724798665476,0.023,59213.0,59212.0,0.1832]
[1724798665678,0.023,59213.0,59210.0,0.3885]
[1724798666367,0.023,59213.0,59196.0,0.3754]
[1724798666368,0.0338,59212.0,59196.0,0.3754]
[1724798666577,0.465336,59197.0,59196.0,0.3754]
[1724798666982,0.565336,59197.0,59196.0,0.3754]
[1724798668184,0.00692551,59214.0,59197.0,0.3767]
[1724798668185,0.465336,59207.0,59197.0,0.3767]
[1724798668388,0.1,59212.0,59201.0,0.3767]
[1724798668570,0.465336,59228.0,59204.0,0.197]
[1724798668775,0.00691318,59216.0,59205.0,0.3767]
[1724798668976,0.465336,59228.0,59207.0,0.3767]
[1724798668977,1.005036,59228.0,59207.0,0.3767]
[1724798669306,0.5397,59228.0,59211.0,0.4124]
[1724798669518,0.5397,59228.0,59172.0,0.1775]
[1724798669519,0.5397,59228.0,59214.0,0.1892]
[1724798669748,0.54655123,59228.0,59215.0,0.4124]
[1724798670188,1.01188723,59228.0,59216.0,0.1892]
[1724798670365,1.01188723,59228.0,59217.0,0.4124]
[1724798670597,1.005036,59228.0,59217.0,0.4124]
[1724798671006,0.1,59227.0,59217.0,0.4124]
[1724798671217,0.09947979,59227.0,59217.0,0.4124]
[1724798672040,0.09927665,59227.0,59217.0,0.4124]
[1724798672455,0.023,59226.0,59217.0,0.4124]
[1724798673870,0.023,59226.0,59184.0,0.00012]
[1724798673871,0.0338,59205.0,59184.0,0.00012]
[1724798674068,0.465336,59196.0,59195.0,0.50540786]
[1724798674221,0.0338,59203.0,59189.0,0.1824]
[1724798674417,0.0338,59203.0,59189.0,0.20344118]
[1724798674682,0.0338,59203.0,59190.0,0.402]
[1724798675078,0.0338,59204.0,59190.0,0.402]
[1724798675281,0.0338,59204.0,59191.0,0.00337849]
[1724798675500,0.0338,59204.0,59189.0,0.20344118]
[1724798675501,0.0338,59204.0,59192.0,0.402]
[1724798675873,0.0338,59204.0,59192.0,0.46336112]
[1724798676250,0.1,59205.0,59192.0,0.46336112]
[1724798676901,0.1,59205.0,59192.0,0.402]
[1724798678164,0.09995,59205.0,59192.0,0.402]
[1724798678369,0.5397,59214.0,59196.0,0.377]
[1724798678572,0.5397,59214.0,59187.0,0.005]
[1724798678573,0.5397,59214.0,59199.0,0.377]
[1724798678795,0.5397,59214.0,59184.0,0.00012]
[1724798678796,0.5397,59214.0,59200.0,0.198]
[1724798678943,0.5397,59214.0,59191.0,0.005]
[1724798678944,0.5397,59220.0,59203.0,0.377]
[1724798679552,0.5397,59220.0,59201.0,0.0198]
[1724798679553,0.5397,59220.0,59205.0,0.377]
[1724798679730,0.5397,59220.0,59211.0,0.50540786]
[1724798680087,0.05464758,59244.0,59204.0,0.198]
[1724798680088,0.50540786,59242.0,59218.0,0.377]
[1724798680290,0.415,59259.0,59212.0,0.49745504]
[1724798680291,0.50540786,59241.0,59221.0,0.198]
[1724798680499,0.01762542,59258.0,59221.0,0.198]
[1724798680500,0.465336,59236.0,59221.0,0.198]
[1724798681574,0.465336,59226.0,59221.0,0.198]
[1724798681953,0.465336,59237.0,59221.0,0.198]
[1724798682314,0.1,59236.0,59221.0,0.198]
[1724798682523,0.023,59235.0,59221.0,0.198]
[1724798682812,0.073,59236.0,59222.0,0.50878472]
[1724798683031,0.073,59236.0,59205.0,0.50540786]
[1724798683032,0.465336,59247.0,59224.0,0.4125]
[1724798683237,0.00089981,59252.0,59225.0,0.1869]
[1724798683443,0.00089981,59252.0,59226.0,0.43119]
[1724798683885,0.3808,59251.0,59226.0,0.43119]
[1724798684299,0.00089981,59252.0,59228.0,0.50540786]
[1724798684499,0.00089981,59252.0,59229.0,0.3832]
[1724798685142,0.00089981,59252.0,59226.0,0.01869]
[1724798685143,0.00089981,59252.0,59231.0,0.6078]
[1724798685254,0.01328979,59252.0,59231.0,0.6078]
[1724798685694,0.00089981,59252.0,59231.0,0.6078]
[1724798686329,0.00089981,59252.0,59232.0,0.50878395]
[1724798686488,0.00089981,59252.0,59231.0,0.6078]
[1724798688519,0.465336,59247.0,59231.0,0.6078]
[1724798688767,0.11254636,59246.0,59231.0,0.6078]
[1724798689205,0.08954636,59246.0,59231.0,0.6078]
[1724798689953,0.00089981,59252.0,59231.0,0.6078]
[1724798690341,0.00089981,59252.0,59232.0,0.395]
[1724798690921,0.00089981,59246.0,59232.0,0.395]
[1724798695125,0.00089981,59246.0,59233.0,0.00337603]
[1724798695530,0.00089981,59246.0,59232.0,0.395]
[1724798695878,0.00089981,59246.0,59233.0,0.00337565]
[1724798696075,0.00089981,59246.0,59232.0,0.395]
[1724798696292,0.00089981,59246.0,59233.0,0.00337565]
[1724798696527,0.00089981,59246.0,59223.0,0.50540786]
[1724798696528,0.4024,59259.0,59223.0,0.50540786]
[1724798696529,0.3873,59293.0,59264.0,0.3766]
[1724798696780,0.465336,59289.0,59264.0,0.5755]
[1724798697114,0.465336,59289.0,59234.0,0.05149525]
[1724798697115,0.3873,59279.0,59253.0,0.5755]
[1724798697327,0.337404,59276.0,59254.0,0.50540786]
[1724798697528,0.168714,59272.0,59248.0,0.3766]
[1724798697735,0.13499882,59271.0,59255.0,0.50540786]
[1724798697941,0.13499882,59271.0,59248.0,0.3766]
[1724798698145,0.3873,59274.0,59248.0,0.3766]
[1724798698281,0.3873,59274.0,59249.0,0.00337544]
[1724798698483,0.3873,59274.0,59248.0,0.3766]
[1724798698484,0.47619925,59274.0,59248.0,0.3766]
[1724798698691,0.22373,59278.0,59238.0,0.50540786]
[1724798698692,0.39,59268.0,59241.0,0.4148]
[1724798698900,0.11108525,59267.0,59241.0,0.4148]
[1724798699102,0.168758,59257.0,59242.0,0.50540786]
[1724798699357,0.21349465,59256.0,59242.0,0.50540786]
[1724798699512,0.21349465,59256.0,59235.0,0.4148]
[1724798699513,0.1,59256.0,59235.0,0.4148]
[1724798699727,0.023,59255.0,59238.0,0.50540786]
[1724798700132,0.023,59255.0,59235.0,0.4148]
[1724798700331,0.1,59257.0,59235.0,0.4148]
[1724798700332,0.023,59256.0,59235.0,0.4148]
[1724798700567,0.023,59256.0,59223.0,0.4003]
[1724798700568,0.168794,59244.0,59223.0,0.4003]
[1724798700812,0.0513,59255.0,59170.0,0.00819]
[1724798700813,0.3943,59238.0,59224.0,0.50540786]
[1724798701023,0.123,59237.0,59224.0,0.50540786]
[1724798701228,0.123,59237.0,59212.0,0.5852]
[1724798701400,0.123,59237.0,59220.0,0.50540786]
[1724798701615,0.5168445,59236.0,59212.0,0.5852]
[1724798701935,0.123,59235.0,59212.0,0.5852]
[1724798702377,0.465336,59229.0,59204.0,0.4029]
[1724798702554,0.5194,59228.0,59205.0,0.50540786]
[1724798702731,0.1018536,59227.0,59205.0,0.50540786]
[1724798703085,0.1,59226.0,59205.0,0.50540786]
[1724798703288,0.023,59225.0,59205.0,0.50540786]
[1724798703484,0.023,59225.0,59198.0,0.4079]
[1724798703485,0.588,59224.0,59198.0,0.4079]
[1724798703598,0.588,59224.0,59206.0,0.50540786]
[1724798703599,0.023,59223.0,59206.0,0.50540786]
[1724798703798,0.465336,59220.0,59207.0,0.50540786]
[1724798704017,0.2214736,59219.0,59207.0,0.50540786]
[1724798704450,0.123,59219.0,59198.0,0.4079]
[1724798705360,0.123,59219.0,59200.0,0.00587799]
[1724798705571,0.39748002,59228.0,59212.0,0.3825]
[1724798705770,0.39748002,59228.0,59205.0,0.5779]
[1724798705771,0.3908,59228.0,59205.0,0.5779]
[1724798705920,0.3908,59228.0,59206.0,0.50540786]
[1724798706917,0.023,59227.0,59206.0,0.50540786]
[1724798707117,0.023,59227.0,59207.0,0.50540786]
[1724798707118,0.06198936,59226.0,59207.0,0.50540786]
[1724798707347,0.06198936,59226.0,59200.0,0.0025]
[1724798707348,0.337754,59215.0,59200.0,0.0025]
[1724798707546,0.5901,59216.0,59201.0,0.50540786]
[1724798707547,0.3908,59203.0,59201.0,0.50540786]
[1724798707910,0.5901,59201.0,59200.0,0.0025]
[1724798708223,0.5901,59201.0,59188.0,0.00817]
[1724798708460,0.18020972,59200.0,59188.0,0.00817]
[1724798708627,0.20320972,59200.0,59188.0,0.00817]
[1724798709039,0.1,59200.0,59190.0,0.1954]
[1724798709236,0.1,59200.0,59188.0,0.00817]
[1724798709419,0.10684984,59203.0,59188.0,0.00817]
[1724798709633,0.1,59203.0,59190.0,0.3825]
[1724798709832,0.3908,59211.0,59190.0,0.3825]
[1724798710665,0.3908,59211.0,59188.0,0.00817]
[1724798710873,0.1993,59217.0,59189.0,0.50540786]
[1724798710874,0.465336,59204.0,59189.0,0.50540786]
[1724798711074,0.191,59210.0,59190.0,0.68860786]
[1724798711075,0.4012,59207.0,59190.0,0.68860786]
[1724798711271,0.4012,59207.0,59191.0,0.00337861]
[1724798711630,0.1,59206.0,59193.0,0.4021]
[1724798711928,0.869036,59214.0,59193.0,0.4021]
[1724798711929,0.1,59213.0,59193.0,0.4021]
[1724798712154,0.023,59212.0,59194.0,0.00337826]
[1724798712378,0.01762542,59217.0,59200.0,0.5854]
[1724798712585,0.168817,59236.0,59199.0,0.50540786]
[1724798712587,0.0481477,59235.0,59203.0,0.5854]
[1724798712806,0.0481477,59238.0,59217.0,0.1984]
[1724798713005,0.0481477,59243.0,59218.0,0.00337604]
[1724798713115,0.12036927,59249.0,59218.0,0.00337604]
[1724798713116,0.04904751,59255.0,59225.0,0.387]
[1724798713323,0.04904751,59255.0,59237.0,0.1808]
[1724798713324,0.00089981,59255.0,59237.0,0.1808]
[1724798713524,0.00089981,59255.0,59235.0,0.005]
[1724798713525,0.00089981,59255.0,59241.0,0.3985]
[1724798713928,0.00089981,59255.0,59242.0,0.003375]
[1724798714127,0.00089981,59255.0,59243.0,0.5793]
[1724798714376,0.00089981,59255.0,59244.0,0.3985]
[1724798714951,0.00089981,59255.0,59245.0,0.00337513]
[1724798715173,0.00089981,59255.0,59251.0,0.3985]
[1724798715378,0.00089981,59255.0,59252.0,0.3985]
[1724798716001,0.00089981,59255.0,59253.0,0.00337476]
[1724798716153,0.00089981,59255.0,59252.0,0.3985]
[1724798716498,0.00069669,59255.0,59253.0,0.00337491]
[1724798716702,0.00069669,59255.0,59252.0,0.3985]
[1724798716854,0.00069669,59255.0,59250.0,0.1808]
[1724798717056,0.00069669,59255.0,59244.0,0.3802]
[1724798717587,0.00069669,59255.0,59245.0,0.00337516]
[1724798717807,0.00069669,59255.0,59244.0,0.3802]
[1724798718171,0.00069669,59255.0,59245.0,0.00337532]
[1724798718605,0.00069669,59255.0,59244.0,0.3802]
[1724798718805,0.00069669,59255.0,59245.0,0.00337493]
[1724798719210,0.00069669,59255.0,59244.0,0.3802]
[1724798720238,0.00069669,59255.0,59245.0,0.50540786]
[1724798720441,0.00069669,59255.0,59241.0,0.1824]
[1724798720442,0.00069669,59255.0,59247.0,0.005]
[1724798720653,0.00069669,59255.0,59246.0,0.20157463]
[1724798720654,0.00069669,59255.0,59249.0,0.4155]
[1724798722321,0.00069669,59255.0,59250.0,0.0033749]
[1724798722495,0.00069669,59255.0,59249.0,0.4155]
[1724798722697,0.00069669,59255.0,59250.0,0.00337446]
[1724798723310,0.00069669,59255.0,59249.0,0.4155]
[1724798723510,0.00069669,59255.0,59250.0,0.00837446]
[1724798723739,0.00069669,59255.0,59252.0,0.4155]
[1724798723944,0.00069669,59255.0,59253.0,0.00337424]
[1724798724118,0.00069669,59255.0,59252.0,0.4155]
[1724798724728,0.00069669,59255.0,59254.0,0.4205]
[1724798724910,0.5754,59293.0,59264.0,0.6137]
[1724798725583,0.5754,59293.0,59266.0,0.50540786]
[1724798725757,0.5754,59293.0,59267.0,0.00337363]
[1724798726206,0.5754,59293.0,59268.0,0.4155]
[1724798726412,0.5754,59293.0,59266.0,0.50540786]
[1724798726413,0.009009,59296.0,59272.0,0.4205]
[1724798726628,0.009009,59296.0,59277.0,0.4155]
[1724798727267,0.3841,59295.0,59277.0,0.4155]
[1724798727874,0.1901,59294.0,59269.0,0.4095]
[1724798728088,0.1901,59294.0,59220.0,0.50540786]
[1724798728089,0.3814,59290.0,59262.0,0.4095]
[1724798728320,0.3814,59290.0,59269.0,0.50540786]